Cogmind - Beta 15 @@@ ROGUE MODE // 2025.06.01 @ 17:54:50 Player: Figgis Result: Destroyed by H-66 Slayer with Gauss Rifle Performance ------------- Evolutions (4) 2000 Regions Visited (4) 800 Robots Destroyed (41) 205 Value Destroyed (1402) 1402 Prototype IDs (13) 260 Alien Tech Used (0) 0 Bonus (800) 800 TOTAL SCORE: 5467 Bonus ------- Registered with UFD 300 Met Optimus in HQ 500 Cogmind --------- Core Integrity 0/850 Matter 210/300 Energy 29/290 System Corruption 12% Temperature Cool (1) Movement Hovering (160) Ox2 Location -6/Factory Parts ------- > --- POWER (2) -------- Improved Deuterium Engine > --- PROPULSION (5) --- Gravmag Array VTOL Module VTOL Module > --- UTILITY (6) ------ Large Storage Unit Improved Transmission Jammer Force Field System Shield System Shield > --- WEAPON (2) ------- Companion Sword > --- INVENTORY (15) --- Improved Deuterium Engine Reinforced Deuterium Engine Micro Nuclear Core Nuclear Pulse Thruster Improved Transmission Jammer Heavy Assault Rifle Gauss Rifle Proton Missile Launcher CPS Tube (2) Great Axe Heavy Pick DRS Beacon (Ready) Peak State ------------ > --- POWER ------------ Angular Momentum Engine Light Angular Momentum Engine > --- PROPULSION ------- Carbon-fiber Leg Carbon-fiber Leg Flexi-carbon Leg Flexi-carbon Leg Armored Leg > --- UTILITY ---------- Large Storage Unit Enhanced Optical Array Improved Terrain Scanner Experimental Terrain Scan Processor Melee Analysis Suite Hacking Suite > --- WEAPON ----------- Companion Sword > --- INVENTORY -------- Armored Leg Nuclear Pulse Thruster System Shield System Shield Heavy Assault Rifle Gauss Rifle Proton Missile Launcher CPS Tube Great Axe Vortex Trap DRS Beacon [Rating: 64] Favorites ----------- Power Ion Engine Engine Ion Engine Propulsion Aluminum Leg Leg Aluminum Leg Hover Unit Gravmag Array Flight Unit VTOL Module Utility Large Storage Unit Device Improved Terrain Scanner Storage Large Storage Unit Processor Targeting Computer Hackware Hacking Suite Weapon Light Assault Rifle Ballistic Gun Light Assault Rifle Ballistic Cannon Light Cannon Slashing Weapon Companion Sword Build | -11 -10 -10 -9 -6 ------- Run | Yrd Mat Sub Scr Fac Slots Evolved 8 | . . . . 8 Power 1 | . . . . 1 Propulsion 3 | . . . . 3 Utility 4 | . . . . 4 Weapon . | . . . . . Parts Attached 57 | 3 16 3 8 27 Power 9 | 1 2 . 2 4 Engine 9 | 1 2 . 2 4 Core . | . . . . . Reactor . | . . . . . Propulsion 23 | 2 5 2 2 12 Treads . | . . . . . Leg 20 | 2 5 2 2 9 Wheel . | . . . . . Hover 1 | . . . . 1 Flight 2 | . . . . 2 Utility 16 | . 4 . 1 11 Device 4 | . . . . 4 Storage 3 | . 3 . . . Processor 6 | . 1 . 1 4 Hackware 3 | . . . . 3 Protection . | . . . . . Artifact . | . . . . . Weapon 9 | . 5 1 3 . Energy Gun . | . . . . . Energy Cannon . | . . . . . Ballistic Gun 6 | . 4 1 1 . Ballistic Cannon 1 | . 1 . . . Launcher . | . . . . . Special Weapon . | . . . . . Impact Weapon . | . . . . . Slashing Weapon 2 | . . . 2 . Piercing Weapon . | . . . . . Special Melee Weapon . | . . . . . Unidentified Prototypes 1 | . . . 1 . Parts Lost 23 | . 1 1 . 21 Power 4 | . . . . 4 Propulsion 11 | . . . . 11 Utility 6 | . . . . 6 Weapon 2 | . 1 1 . . Highest Loss Streak 8 | . 1 1 . 8 To Critical Strikes 1 | . . 1 . . Average Backups 11 | 2 10 13 12 8 Power 1 | . 1 1 1 . Propulsion 3 | . 3 4 3 . Utility 3 | . 1 3 4 1 Weapon 3 | 1 3 3 2 4 Tool/Special . | . . . . . Unused Backups 23 | 1 . 4 9 9 Power 5 | . . 1 1 3 Propulsion 3 | 1 . . 1 1 Utility 5 | . . 1 3 1 Weapon 9 | . . 2 4 3 Tool/Special 1 | . . . . 1 Average Slot Usage (%) 90 | . 96 100 94 67 Engine 13 | . 14 14 14 9 Leg 26 | . 28 28 28 20 Device 1 | . . . . 8 Storage 12 | . 13 14 14 6 Processor 11 | . 10 14 14 8 Ballistic Gun 14 | . 16 24 17 . Ballistic Cannon 3 | . 11 3 . . Slashing Weapon 3 | . . . 5 6 Peak Build Rating 64 | 3 9 9 26 64 Average Rating 18 | 1 8 8 17 43 On Entrance 9 | . 3 9 9 24 Naked Turns . | . . . . . Heaviest Build 47 | 3 29 29 33 47 Greatest Support 86 | 3 20 20 36 86 Greatest Overweight (x) 12 | . 2 1 1 12 Average Overweight (x) . | . . 1 . . Largest Inventory Capacity 15 | 5 15 15 15 15 Average Capacity 14 | 5 11 15 15 15 Most Carried 15 | 5 15 15 15 15 Average Carried 12 | 3 10 14 14 10 Final Capacity 15 | 5 15 15 15 15 Final Carried 15 | 5 15 15 15 12 Class Distribution -------------------- 72% | Mutant 14% | Scavenger-Mutant 10% | Scavenger-Assassin Dominant Class ---------------- Mutant | -10/Materials Scavenger-Mutant | -10/Subcaves Mutant | -9/Scraptown Scavenger-Assassin | -6/Factory Resources | -11 -10 -10 -9 -6 ----------- Run | Yrd Mat Sub Scr Fac Matter Collected 1030 | 208 476 91 80 175 Remotely . | . . . . . Salvage Created 1760 | . 601 85 . 1074 Parts 96 | . 53 9 . 34 Haulers Intercepted . | . . . . . Recyclers Shooed . | . . . . . Parts Field Recycled . | . . . . . Retrieved Matter . | . . . . . Parts Self-Destructed . | . . . . . Prevented . | . . . . . Kills | -11 -10 -10 -9 -6 ------- Run | Yrd Mat Sub Scr Fac Combat Hostiles Destroyed 35 | . 18 2 . 15 Melee 15 | . . . . 15 Guns 10 | . 8 2 . . Cannons 10 | . 10 . . . Classes Destroyed 10 | . 5 1 . 4 Recycler 3 | . 1 . . 2 Operator 1 | . 1 . . . Watcher 2 | . 2 . . . Swarmer 9 | . 6 . . 3 Grunt 18 | . 12 . . 6 Brawler 1 | . . . . 1 Sentry 3 | . . . . 3 Hunter 1 | . . . . 1 Programmer 1 | . . . . 1 Subdweller 2 | . . 2 . . Best Kill Streak 5 | . 5 2 . 5 Combat Bots Only 5 | . 5 2 . 3 Max Kills in Single Turn 1 | . 1 1 . 1 Gunslinging . | . . . . . Exploded . | . . . . . Melee 1 | . . . . 1 Uniques/NPCs Destroyed . | . . . . . Combat | -11 -10 -10 -9 -6 -------- Run | Yrd Mat Sub Scr Fac Hostile Shots Fired 444 | . 77 9 . 358 Missed 150 | . 23 3 . 124 Hits 294 | . 54 6 . 234 Melee 7 | . . . . 7 Projectile 287 | . 54 6 . 227 Critical Strikes 10 | . . 1 . 9 Damage Taken 3877 | . 605 130 . 3142 Core 1011 | . 111 34 . 866 Absorbed by Shields 47 | . . . . 47 Core Remaining (%) 71 | 100 . . 42 . Volleys Fired 72 | . 63 9 . . Largest 2 | . 2 2 . . Hottest 50 | . 50 50 . . Shots Fired 142 | . 125 17 . . Gun 91 | . 77 14 . . Cannon 51 | . 48 3 . . Launcher . | . . . . . Special . | . . . . . Kinetic 142 | . 125 17 . . Thermal . | . . . . . Explosive . | . . . . . Electromagnetic . | . . . . . Robot Hit Streak 13 | . 11 13 . . Robot Miss Streak 5 | . 5 2 . . Penetration Max . | . . . . . Secondary Targets 2 | . 1 1 . . Max Gunslinging Chain 1 | . 1 1 . . Shots Hit Robots 144 | . 71 12 . 61 Core Hits 62 | . 38 4 . 20 Critical Kills . | . . . . . Critical Parts Destroyed . | . . . . . Critical Strikes . | . . . . . Melee Attacks 90 | . . . . 90 Impact . | . . . . . Slashing 90 | . . . . 90 Piercing . | . . . . . Sneak Attacks 3 | . . . . 3 Combat Hostiles . | . . . . . Follow-up Attacks . | . . . . . Damage Inflicted 3620 | . 941 121 . 2558 Guns 540 | . 454 86 . . Cannons 522 | . 487 35 . . Explosions . | . . . . . Melee 2558 | . . . . 2558 Ramming . | . . . . . Kinetic 1062 | . 941 121 . . Thermal . | . . . . . Explosive . | . . . . . Electromagnetic . | . . . . . Impact . | . . . . . Slashing 2558 | . . . . 2558 Piercing . | . . . . . Highest Corruption 12 | . . . . 12 Average Corruption 11 | . . . . 11 Corruption Purged . | . . . . . Corruption Blocked . | . . . . . Effects 11 | . . . . 11 Message Errors 3 | . . . . 3 Matter Fused 1 | . . . . 1 Energy Discharges 3 | . . . . 3 Data Loss (minor) 3 | . . . . 3 Data Loss (major) 1 | . . . . 1 Overload Shots . | . . . . . Overflow Damage 165 | . . . . 165 Projectiles . | . . . . . Explosions . | . . . . . Melee 165 | . . . . 165 Knockbacks 3 | . 3 . . . Impact . | . . . . . Kinetic 3 | . 3 . . . Secondary . | . . . . . Self-Inflicted Damage . | . . . . . Shots . | . . . . . Rammed . | . . . . . Targets Rammed . | . . . . . Kicked . | . . . . . Crushed . | . . . . . Highest Temperature 32 | . 32 . . 20 Average Temperature 10 | . 10 . . 8 Received Heat Transfer 1149 | . 276 30 . 843 Siege Activations . | . . . . . Martial Activations . | . . . . . Shielding Activations . | . . . . . Robots Disrupted . | . . . . . Combat Hostiles . | . . . . . Robots Corrupted . | . . . . . Combat Hostiles . | . . . . . Parts Fried . | . . . . . Impact Corruptions . | . . . . . Robots Melted . | . . . . . Combat Hostiles . | . . . . . Parts Melted . | . . . . . Heat Transferred . | . . . . . Parts Sabotaged . | . . . . . Parts Stolen . | . . . . . Parts Stripped . | . . . . . Power Chain Reactions . | . . . . . Alert | -11 -10 -10 -9 -6 ------- Run | Yrd Mat Sub Scr Fac Maximum Alert Level . | . . . . . Low Security (%) 100 | 100 100 . . 100 Level 1 . | . . . . . Level 2 . | . . . . . Level 3 . | . . . . . Level 4 . | . . . . . Level 5 . | . . . . . High Security . | . . . . . Max Security . | . . . . . Peak Influence 132 | . 132 . . 55 Initial . | . . . . . Average 43 | . 64 . . 14 Influence Increases 933 | . 522 . . 411 Destroy 0b10 Robot/C 660 | . 360 . . 300 Destroy 0b10 Robot/NC 30 | . 20 . . 10 Destroy Leader 154 | . 74 . . 80 Successful Hack 6 | . 6 . . . Disable Machine 30 | . 30 . . . Destroy Structure 8 | . 2 . . 6 Lose Combat Pursuer 45 | . 30 . . 15 Influence Decreases 933 | . 478 44 . 411 Entered New Map 22 | . . 22 . . Time Decay 754 | . 468 22 . 264 Lost Part 157 | . 10 . . 147 Squads Dispatched 7 | . 3 . . 4 Investigation 2 | . 1 . . 1 Extermination 1 | . . . . 1 Reinforcement 4 | . 2 . . 2 Assault . | . . . . . Garrison . | . . . . . Intercept . | . . . . . Searches Triggered . | . . . . . Construction Impeded . | . . . . . Haulers Reinforced . | . . . . . Active Scanning Responses . | . . . . . Cargo Convoy Interrupts . | . . . . . Stealth | -11 -10 -10 -9 -6 --------- Run | Yrd Mat Sub Scr Fac Distress Signals 3 | . 2 . . 1 Communications Jammed 8 | . . . . 8 Distress Signals 8 | . . . . 8 Times Spotted 64 | . 33 8 . 23 Peak Tracking Total 7 | . 7 4 . 4 Tactical Retreats 2 | . 1 . . 1 Traps | -11 -10 -10 -9 -6 ------- Run | Yrd Mat Sub Scr Fac Traps Triggered 1 | . 1 . . . Indirectly . | . . . . . Trap Hack Attempts . | . . . . . Triggered . | . . . . . Disarmed . | . . . . . Reprogrammed . | . . . . . Reused . | . . . . . Traps Extracted . | . . . . . Installed 1 | . . . . 1 Triggered . | . . . . . Most Traps Carried 1 | . . . 1 1 Machines | -11 -10 -10 -9 -6 ---------- Run | Yrd Mat Sub Scr Fac Machines Disabled 2 | . 2 . . . Max in Single Turn 1 | . 1 . . . Machines Repaired . | . . . . . Machines Dismantled . | . . . . . Machines Sabotaged . | . . . . . Overloaded Fab Kills . | . . . . . Hacking | -11 -10 -10 -9 -6 --------- Run | Yrd Mat Sub Scr Fac Machines Accessed 16 | . 3 1 9 3 Terminals 4 | . 3 . . 1 Fabricators . | . . . . . Repair Stations . | . . . . . Recycling Units 2 | . . . . 2 Scanalyzers . | . . . . . Garrison Access . | . . . . . Total Hacks 69 | . 10 3 51 5 Successful 58 | . 2 3 51 2 Failed 11 | . 8 . . 3 Catastrophic 3 | . 3 . . . Database Lockouts . | . . . . . Manual 11 | . 10 . . 1 Terminals 11 | . 10 . . 1 Fabricators . | . . . . . Repair Stations . | . . . . . Recycling Units 4 | . . . . 4 Scanalyzers . | . . . . . Garrison Access . | . . . . . Terminal Hacks 56 | . 2 3 51 . Record 52 | . . 3 49 . Robot Analysis 2 | . 2 . . . Open Door 1 | . . . 1 . Proto ID Catalog 1 | . . . 1 . Fabricator Hacks . | . . . . . Repair Station Hacks . | . . . . . Recycling Unit Hacks 1 | . . . . 1 Retrieve Components 1 | . . . . 1 Scanalyzer . | . . . . . Garrison Access Hacks . | . . . . . Unauthorized Hacks 1 | . . . . 1 Terminals . | . . . . . Fabricators . | . . . . . Repair Stations . | . . . . . Recycling Units 1 | . . . . 1 Fedlink 1 | . . . . 1 Scanalyzers . | . . . . . Garrison Access . | . . . . . Data Cores Recovered . | . . . . . Used . | . . . . . Hacking Detections 4 | . 3 . . 1 Full Trace Events . | . . . . . Feedback Events . | . . . . . Feedback Blocked . | . . . . . Robot Schematics Acquired . | . . . . . Robots Built . | . . . . . Authchips . | . . . . . Time . | . . . . . Total Robot Build Rating . | . . . . . Part Schematics Acquired . | . . . . . Parts Built . | . . . . . Authchips . | . . . . . Time . | . . . . . Total Part Build Rating . | . . . . . Parts Repaired . | . . . . . Time . | . . . . . Parts Recycled . | . . . . . Recycled Matter . | . . . . . Retrieved Matter . | . . . . . Retrieved Components 8 | . . . . 8 Parts Scanalyzed . | . . . . . Part Schematics Acquired . | . . . . . Parts Damaged . | . . . . . Bothacking | -11 -10 -10 -9 -6 ------------ Run | Yrd Mat Sub Scr Fac Used RIF Installer . | . . . . . Robots Hacked . | . . . . . Non-combat . | . . . . . Combat . | . . . . . Robot Hacks Applied . | . . . . . Relay Couplers Released . | . . . . . Fabnet Peak Effective % . | . . . . . Robots Rewired . | . . . . . Allies Hacked . | . . . . . Hacks Repelled . | . . . . . Allies | -11 -10 -10 -9 -6 -------- Run | Yrd Mat Sub Scr Fac Total Allies . | . . . . . Largest Group . | . . . . . Highest-Rated Group . | . . . . . Highest-Rated Ally . | . . . . . Total Orders . | . . . . . Ally Attacks . | . . . . . Total Damage . | . . . . . Kills . | . . . . . Allies Corrupted . | . . . . . Allies Melted . | . . . . . Intel | -11 -10 -10 -9 -6 ------- Run | Yrd Mat Sub Scr Fac Active Infowar (turns) 743 | . . . . 743 Optics 548 | . . . . 548 Terrain 686 | . . . . 686 Jamming 57 | . . . . 57 Robot Analysis Total 2 | . 2 . . . Derelict Logs Recovered 3 | . . . 3 . Drone Launches . | . . . . . Drone Recoveries . | . . . . . Exploration | -11 -10 -10 -9 -6 ------------- Run | Yrd Mat Sub Scr Fac Turns Passed 5220 | 28 1445 629 2127 991 Spaces Moved 2979 | 34 632 313 1483 517 Core 45 | 34 . . . 11 Treads . | . . . . . Legs 2793 | . 632 313 1483 365 Wheels . | . . . . . Hover 141 | . . . . 141 Flight . | . . . . . Fastest Speed 50 | 50 120 190 125 110 Average Speed 145 | 50 152 190 139 133 Slowest Speed 650 | 50 260 190 190 650 Overloaded Moves . | . . . . . Propulsion Burnouts . | . . . . . Robots Hopped . | . . . . . Potential Cave-ins . | . . . . . Cave-ins Triggered . | . . . . . Exploration Rate (%) 41 | 2 73 26 90 14 Regions Visited 4 Branch Regions 2 Pre-discovered Areas 1 | . . 1 . . Known Exits Taken . | . . . . . Unknown Exits Taken 4 | 1 1 1 1 . Scrap Searched 8 | . . . 8 . Spaces Dug 6 | . . . . 6 Terrain Destroyed 6 | . . . . 6 Melee 6 | . . . . 6 Projectile . | . . . . . AOE . | . . . . . Terrain Rammed . | . . . . . Walls Destroyed . | . . . . . Machines Disabled . | . . . . . Actions | -11 -10 -10 -9 -6 --------- Run | Yrd Mat Sub Scr Fac Total 3615 | 43 1004 336 1544 688 Wait 313 | . 266 . 22 25 Move 2975 | 33 631 312 1482 517 Hop . | . . . . . Pick Up 68 | 6 17 6 14 25 Fast Attach 6 | 3 2 . 1 . Attach 30 | . 3 1 . 26 Detach 1 | . . . 1 . Swap 22 | . 11 2 7 2 Drop 37 | 1 11 6 17 2 Fire 72 | . 63 9 . . Melee 90 | . . . . 90 Ram . | . . . . . Kick . | . . . . . Crush . | . . . . . Escape Stasis . | . . . . . Rewire . | . . . . . Trap 1 | . . . . 1 Miscellaneous . | . . . . . Route ------- -11/Scrapyard -10/Materials (discovered 4 exits: [*Mat x2] / [*Min] / *Sub) -10/Subcaves (discovered 2 exits: [*Mat] / *Scr) -9/Scraptown (discovered 2 exits: *Fac x2) -6/Factory (discovered 1 exit: [Ext]) History --------- Turn | Location | Event 18 | -11/Scrapyard | Discovered new exit (range 14) 29 | -11/Scrapyard | Entered Materials 300 | -10/Materials | Build established: Mutant 323 | -10/Materials | Discovered new exit (range 16) 984 | -10/Materials | Discovered new exit (range 16) 1216 | -10/Materials | Discovered new exit (range 14) 1462 | -10/Materials | Discovered new exit (range 7) 1474 | -10/Materials | Entered Subcaves 1475 | -10/Subcaves | Approached by a straggling Scientist 1612 | -10/Subcaves | Ambushed by swarm of Subdwellers 1621 | -10/Subcaves | Core integrity fell below 50% 1757 | -10/Subcaves | Shifting Twisted Machinery released Mak. Laser 1872 | -10/Subcaves | Shifting Twisted Machinery released Piercing Trap 1923 | -10/Subcaves | Build established: Scavenger-Mutant 1936 | -10/Subcaves | Discovered new exit (range 10) 1986 | -10/Subcaves | Visited Clippyterm 1991 | -10/Subcaves | Learned location of Section 7 (-3) 2076 | -10/Subcaves | Scientist uncovered a shortcut to Scraptown 2103 | -10/Subcaves | Entered Scraptown 2583 | -9/Scraptown | Scanned Subdweller tech in exchange for log data 2589 | -9/Scraptown | Learned 12 Factory zone layouts 2591 | -9/Scraptown | Learned 12 Research zone layouts 2592 | -9/Scraptown | Learned location of 1 exit from Lower Caves 2621 | -9/Scraptown | Discovered new exit (range 5) 2674 | -9/Scraptown | Build established: Mutant 2703 | -9/Scraptown | Visited Bundlers 2798 | -9/Scraptown | Visited Symbiants 2843 | -9/Scraptown | Visited Spacefarers 2880 | -9/Scraptown | Visited Cyclists 2905 | -9/Scraptown | Visited Shadow of the Wyrm 2915 | -9/Scraptown | Visited Junk Repository 2938 | -9/Scraptown | Visited UFD Registry 2938 | -9/Scraptown | Registered with UFD as "Technocycle" 2988 | -9/Scraptown | Entered Cyclist Reading Room 3046 | -9/Scraptown | Visited Comm Corps 3342 | -9/Scraptown | Visited Curators Association 3362 | -9/Scraptown | Visited Junk Repository 3407 | -9/Scraptown | Visited Sword Containment 3470 | -9/Scraptown | Delivered Scrap Shield to a Scientist 3586 | -9/Scraptown | Visited Derelict Rescue Squad 3597 | -9/Scraptown | Found DRS Beacon 3620 | -9/Scraptown | Visited DA-N13 Charitable Foundation 3625 | -9/Scraptown | Found DCF Scrap (30 items) 3682 | -9/Scraptown | Visited Infowarlord's Domain 3693 | -9/Scraptown | Found Exp. Terrain Scan Processor 3712 | -9/Scraptown | Visited Scrap Suit Storage 3859 | -9/Scraptown | Visited Observation Area 3912 | -9/Scraptown | Visited Science Guys 3971 | -9/Scraptown | Visited LU-1G1's Boring Crew 4142 | -9/Scraptown | Met Optimus 4142 | -9/Scraptown | Accepted into 0bPrime 4225 | -9/Scraptown | Discovered new exit (range 5) 4230 | -9/Scraptown | Entered Factory 4230 | -6/Factory | Evolved 8 slots: Power x1, Propulsion x3, Utility x4 4389 | -6/Factory | Loaded intel: 8 recycling unit locations 4526 | -6/Factory | Build established: Scavenger-Assassin 4588 | -6/Factory | Lost 5 parts (1p4n) 4683 | -6/Factory | Discovered new exit (range 15) 4840 | -6/Factory | System corruption reached 10% 4904 | -6/Factory | Lost 8 parts (4n4u) 4943 | -6/Factory | Core integrity fell below 50% 4966 | -6/Factory | Lost 5 parts (2p2n1u) 4982 | -6/Factory | Core integrity fell below 20% 5120 | -6/Factory | Build established: Mutant 5221 | -6/Factory | Destroyed by H-66 Slayer with Gauss Rifle Last Messages --------------- Imp. Transmission Jammer VTOL Module Rnf. Deuterium Engine Imp. Transmission Jammer 05162_ Acquired Imp. Transmission Jammer. 05167_ Acquired Rnf. Deuterium Engine. 05169_ Acquired Imp. Transmission Jammer. 05174_ Acquired VTOL Module. 05187_ O-24 Administrator: "IFF HANDSHAKE FAILED. SECURING TERMINAL." 05191_ W-25 Informer distress signal jammed. 05200_ O-24 Administrator: "IFF HANDSHAKE FAILED. SECURING TERMINAL." 05205_ ALERT: Hostiles spotted, dispatching reinforcements to Terminal F005. 05207_ ALERT: Hostiles spotted, dispatching reinforcements to Terminal F007. 05213_ Slug penetrates Wall. 05218_ Penetrated by Slug. 05219_ Dropped Vortex Trap. 05220_ Installed Vortex Trap. 05221_ Penetrated by Slug. Map ----- +----------------------------------------------------+ | ??????????????????????????????# ???????????? | | ??????????????????????????????# ???????????? | | ?????????????????????##### ??## ????????????? | | ?????????????????????? ??#T ????????????? | | ???????????????????????# ???# ############## | | ???????????????????????# #### # # | | ???????????????????????# # """" """" # | | ???????????????????????# # """" """" # | | ???????????????????????# # """" """" # | | ???????????????????????# + """" """" # | | ???????????????????????# # # | | ???????????????????????# #"" """" # | | ???????????????????????# #""[ """" + | | ???????????????????????# #"Y * """" # | | ???????????????????????# #"" = """" # | | ???????????????????????# #"" # | | ???????????????????????# # # | | ???????????????????????# ############## | | ???????????????????????# ########????#?####### | | ??????????????? ??????# #???????????######### | | ??????????????? """????# #??????????? ###### | | ??????????????? """ ??# #???????????? ###### | | ??????????? """ #^ #?????????? ###### | | ??????????# + +??????????? ? ###### | | ??????????# # #?????????? ###### | | ??????????# ??# @ #?????????? # | | ??????????#########????#^ #?????????###?####### | | ?????????????????????? h ????########## | | ???????????????????? h #???########## | | ?????????????????? g #???#?######## | | ???????????????? #???? | | ??????????????# #????? | | ??????????????####t######+##### #???? ? | | ???????????????? ???????????? #???? | | ???????????????" ?????????????? #?????? ? | | ??????????????#" ??????????????? +?????? | | ??????????????#"?????????????????? #??????####### | | ?????????????????????????????????? ????????? ?? # | | ????????????????????????????????????????????? # | | ??????????????????????????????????????????????""?# | | ???????????????????????????????????????????????? # | | ???????????????????????????????????????????????? ? | | ?????????????????????????????????????????????????# | | ?????????????????????????????????????????????????? | | ?????????????????????????????????????????????????? | | ?????????????????????????????????????????????????? | | ?????????????????????????????????????????????????? | | ?????????????????????????????????????????????????? | | ?????????????????????????????????????????????????? | | ?????????????????????????????????????????????????? | +----------------------------------------------------+ Best States ------------- Heat Dissipation 37 Energy Generation 31 Energy Capacity 465 Matter Stores 300 Matter Capacity 300 Sight Range 22 Terrain Scan Range 16 Terrain Scan Density 1010 Jamming Range 14 Evasion (%) 65 Targeting Accuracy 6 Melee Accuracy 5 Offensive Hacking 10 Defensive Hacking 20 Item Schematics ----------------- None Robot Schematics ------------------ None Fabricated ------------ Nothing Repaired ---------- Nothing Alien Tech Used ----------------- None Achievements -------------- None Challenges ------------ None Game ------ Seed RagnarokNovaInjector Manual? 0 Play Time 00:31:00 Cumulative 171.4 hours Start 2025.06.01 @ 17:24:31 End 2025.06.01 @ 17:54:50 Sessions 1 Manual Loads 0 Difficulty Rogue Special Mode None Game No. 267 Rogue 264 Adventurer 3 Explorer 0 Win Type - Total 1 Types 1/0/0/0/0/0/0/0/0/0 Lore% 60 Gallery% 57 Achievement% 45 Wizard Run 0 Options --------- Layout 0 ASCII 0 Keyboard 0 Movement Mouse Keybinds 0 Fullscreen 2 Font 18/SmallcapsGlow Map View 76x50 Zoom Use 0% Tactical HUD 1 Map Filters NONE Filters NONE Steam 1 RUN: e1d16b42-82ef-4122-ba6e-74491f61a98b